fUSD/lending_fUSD_20260107
["ID","MTS","AMOUNT","RATE_DAILY","PERIOD"]
[400714799,1767787839280,-324.19847389,0.00017594,2]
[400714800,1767787839292,-500.0,0.00017594,2]
[400714801,1767787839305,-787.0,0.00017632,2]
[400714802,1767787839318,-787.0,0.00017639,2]
[400714803,1767787839331,-787.0,0.0001766,2]
[400714804,1767787839343,-787.0,0.0001767,2]
[400714805,1767787839355,-221.98400083,0.00017699,2]
[400714806,1767787839380,-500.0,0.00017727,2]
[400714807,1767787839396,-1465.39,0.00017728,2]
[400714808,1767787839411,-9999.99,0.00017728,2]
[400714809,1767787839425,-9999.99,0.00017728,2]
[400714810,1767787839440,-9999.99,0.00017728,2]
[400714811,1767787839455,-99541.5,0.00017728,2]
[400714812,1767787839469,-2095.06,0.00017728,2]
[400714813,1767787839482,-999.99,0.00017728,2]
[400714814,1767787839495,-299.99,0.00017728,4]
[400714816,1767787839509,-3687.07,0.00017728,2]
[400714818,1767787839523,-9999.99,0.00017728,2]
[400714821,1767787839542,-1197.25,0.00017728,2]
[400714824,1767787839556,-150.99,0.00017728,2]
[400714827,1767787839575,-744.27,0.00017728,2]
[400714829,1767787839586,-149206.56,0.00017728,2]
[400714831,1767787839596,-3174.75,0.00017728,2]
[400714833,1767787839608,-4999.99,0.00017728,2]
[400714835,1767787839617,-499.99,0.00017728,2]
[400714837,1767787839626,-7097.53,0.00017728,2]
[400714839,1767787839635,-20121.92,0.00017728,2]
[400714841,1767787839644,-1534.06,0.00017728,2]
[400714843,1767787839653,-529.93,0.00017728,5]
[400714845,1767787839662,-9999.99,0.00017728,2]
[400714847,1767787839671,-13963.16,0.00017728,2]
[400714849,1767787839680,-1178.51,0.00017728,2]
[400714851,1767787839689,-17534.98,0.00017728,2]
[400714853,1767787839698,-309.76,0.00017728,2]
[400714854,1767787839708,-9999.99,0.00017728,2]
[400714855,1767787839721,-150.99,0.00017728,2]
[400714856,1767787839730,-787.0,0.00017851,2]
[400714857,1767787839739,-155.77,0.00017859,2]
[400714858,1767787839748,-1225.39,0.00017868,2]
[400714859,1767787839758,-787.0,0.00017908,2]
[400714860,1767787839767,-1039.32,0.00017922,2]
[400714861,1767787839777,-787.0,0.00017948,2]
[400714862,1767787839786,-420.0,0.00017964,2]
[400714863,1767787839796,-420.0,0.00017964,2]
[400714864,1767787839805,-787.0,0.00017997,2]
[400714865,1767787839815,-787.0,0.00018007,2]
[400714866,1767787839824,-250.0,0.00018044,2]
[400714867,1767787839833,-600.0,0.00018044,2]
[400714868,1767787839842,-600.0,0.00018044,2]
[400714869,1767787839851,-600.0,0.00018044,2]
[400714870,1767787839861,-152.10889041,0.00018044,2]
[400714871,1767787839870,-300.0,0.00018044,2]
[400714872,1767787839879,-195.0,0.00018044,2]
[400714873,1767787839888,-1680.0,0.00018053,2]
[400714874,1767787839899,-193.0,0.00018053,2]
[400714877,1767787840671,-600.0,0.00018053,2]
[400714879,1767787840707,-600.0,0.00018081,2]
[400714880,1767787840735,-195.0,0.00018081,2]
[400714881,1767787840745,-300.0,0.00018081,2]
[400714882,1767787840754,-5000.0,0.00018081,2]
[400714883,1767787840763,-2500.0,0.00018081,2]
[400714884,1767787840772,-1225.39,0.00018142,2]
[400714885,1767787840781,-821.82288534,0.00018142,2]
[400714886,1767787840790,-556.0741427,0.00018142,2]
[400714887,1767787840799,-1015.65451742,0.00018142,2]
[400714888,1767787840808,-1000.0,0.00018142,2]
[400714889,1767787840817,-1000.0,0.00018142,2]
[400714890,1767787840826,-1029.13192156,0.00018142,2]
[400714891,1767787840846,-1000.0,0.00018142,2]
[400714892,1767787840855,-442.83023798,0.00018142,2]
[400714893,1767787840864,-500.0,0.00018142,2]
[400714894,1767787840874,-1000.0,0.00018142,2]
[400714895,1767787840883,-519.44971303,0.00018142,2]
[400714896,1767787840892,-1128.37348131,0.00018142,2]
[400714897,1767787840901,-502.16378022,0.00018142,2]
[400714898,1767787840912,-1000.0,0.00018142,2]
[400714899,1767787840921,-1000.0,0.00018142,2]
[400714900,1767787840931,-1000.0,0.00018142,2]
[400714901,1767787840940,-500.73448024,0.00018142,2]
[400714902,1767787840949,-1000.0,0.00018142,2]
[400714903,1767787840959,-1000.0,0.00018142,2]
[400714904,1767787840969,-1009.96734995,0.00018142,2]
[400714905,1767787840978,-787.0,0.00018227,2]
[400714906,1767787840987,-787.0,0.00018241,2]
[400714907,1767787840997,-787.0,0.00018264,2]
[400714908,1767787841006,-659.3,0.00018328,2]
[400714909,1767787841016,-787.0,0.00018342,2]
[400714910,1767787841025,-787.0,0.0001835,2]
[400714911,1767787841035,-1225.39,0.00018416,2]
[400714912,1767787841045,-787.0,0.00018621,2]
[400714913,1767787841055,-787.0,0.00018674,2]
[400714914,1767787841065,-787.0,0.00018675,2]
[400714915,1767787841075,-1225.39,0.0001869,2]
[400714916,1767787841087,-1500.0,0.0001869,2]
[400714917,1767787841096,-1000.0,0.0001869,2]
[400714918,1767787841105,-1537.00577444,0.0001869,2]
[400714919,1767787841115,-1500.0,0.0001869,2]
[400714920,1767787841124,-1500.0,0.0001869,2]
[400714921,1767787841133,-500.77724877,0.0001869,2]
[400714922,1767787841143,-1500.0,0.0001869,2]
[400714923,1767787841153,-1524.05521125,0.0001869,2]
[400714924,1767787841163,-1500.0,0.0001869,2]
[400714925,1767787841173,-1039.32,0.00018737,2]
[400714926,1767787841183,-1000.0,0.00018793,2]
[400714927,1767787841193,-787.0,0.00018799,2]
[400714928,1767787841203,-287.13,0.000188,2]
[400714929,1767787841212,-809.39,0.000188,2]
[400714930,1767787841222,-855.22,0.000188,2]
[400714931,1767787841231,-548.35,0.000188,2]
[400714932,1767787841241,-151.51,0.000188,2]
[400714933,1767787841250,-151.51,0.000188,2]
[400714934,1767787841260,-151.51,0.000188,2]
[400714935,1767787841270,-151.51,0.000188,2]
[400714936,1767787841279,-151.51,0.000188,2]
[400714937,1767787841288,-151.51,0.000188,2]
[400714938,1767787841298,-787.0,0.00018817,2]
[400714939,1767787841308,-787.0,0.00018848,2]
[400714940,1767787841318,-787.0,0.00018933,2]
[400714941,1767787841328,-1225.39,0.00018964,2]
[400714942,1767787841337,-938.63568615,0.00019,2]
[400714943,1767787841347,-300.0,0.00019,2]
[400714944,1767787841357,-50412.15071468,0.00019,2]
[400714945,1767787841366,-491.22454422,0.00019,2]
[400714946,1767787841380,-200.0,0.00019082,2]
[400714947,1767787841390,-787.0,0.00019097,2]
[400714948,1767787841402,-2000.0,0.00019238,2]
[400714949,1767787841411,-505.38555235,0.00019238,2]
[400714950,1767787841420,-2000.0,0.00019238,2]
[400714951,1767787841430,-176.00349903,0.00019238,2]
[400714952,1767787841439,-2000.0,0.00019238,2]
[400714953,1767787841449,-1225.39,0.00019238,2]
[400714954,1767787841460,-10098.7894,0.00019239,2]
[400714955,1767787841469,-787.0,0.00019291,2]
[400714956,1767787841479,-787.0,0.00019314,2]
[400714957,1767787841488,-171.28,0.0001932,2]
[400714958,1767787841498,-500.0,0.00019338,2]
[400714959,1767787841507,-151.51,0.00019359,2]
[400714960,1767787841517,-8038.3614311,0.00019369,2]
[400714961,1767787841529,-787.0,0.00019378,2]
[400714962,1767787841539,-1225.39,0.00019512,2]
[400714963,1767787841548,-1039.32,0.00019552,2]
[400714964,1767787841558,-587.0,0.00019631,2]
[400714965,1767787841568,-2000.0,0.00019786,2]
[400714966,1767787841579,-2500.0,0.00019786,2]
[400714967,1767787841589,-1500.0,0.00019786,2]
[400714968,1767787841599,-1225.39,0.00019786,2]
[400714969,1767787841609,-2351.0,0.00019828,2]
[400714970,1767787841619,-1793.6008734,0.0001986,2]
[400714971,1767787841629,-166.66,0.00019974,2]
[400714972,1767787841639,-1649.13,0.0002,2]
[400714973,1767787841648,-150.0,0.0002,20]
[400714974,1767787841658,-1225.39,0.0002006,2]
[400714975,1767787841667,-958.57200881,0.00020181,2]
[400714976,1767787841677,-3000.0,0.00020334,2]
[400714977,1767787841687,-1225.39,0.00020334,2]
[400714978,1767787841696,-166.66,0.00020395,2]
[400714979,1767787841707,-881.0,0.00020548,2]
[400714980,1767787841717,-1225.48656441,0.00020608,2]
[400714981,1767787841726,-798.67,0.000207,7]
[400714982,1767787841736,-166.66,0.00020815,2]
[400714983,1767787841746,-163.91088797,0.00020869,2]
[400714984,1767787841755,-1000.0,0.00020881,2]
[400714985,1767787841769,-3500.0,0.00020882,2]
[400714986,1767787841778,-479.63084268,0.00020979,2]
[400714987,1767787841788,-350.0,0.00021,2]
[400714988,1767787841798,-166.66,0.00021236,2]
[400714989,1767787841808,-4000.0,0.0002143,2]
[400714990,1767787841817,-382.0,0.00021454,2]
[400714991,1767787841827,-200.0,0.00021606,2]
[400714992,1767787841836,-207.4,0.00021606,2]
[400714993,1767787841846,-215.0738,0.00021606,2]
[400714994,1767787841855,-223.0315306,0.00021606,2]
[400714995,1767787841865,-231.28369723,0.00021606,2]
[400714996,1767787841875,-239.84119403,0.00021606,2]
[400714997,1767787841884,-248.71531821,0.00021606,2]
[400714998,1767787841894,-257.91778498,0.00021606,2]
[400714999,1767787841904,-267.46074303,0.00021606,2]
[400715000,1767787841915,-277.35679052,0.00021606,2]
[400715001,1767787841924,-166.66,0.00021656,2]
[400715002,1767787841934,-250.0,0.00021686,2]
[400715003,1767787841945,-3292.0,0.00021777,2]
[400715004,1767787841955,-500.0,0.00021899,2]
[400715005,1767787841964,-500.0,0.00021899,2]
[400715006,1767787841974,-474.29981828,0.00021899,2]
[400715007,1767787841983,-5000.0,0.00021918,2]
[400715008,1767787841993,-500.0,0.00021918,2]
[400715009,1767787842002,-500.0,0.00021918,2]
[400715010,1767787842011,-500.0,0.00021918,2]
[400715011,1767787842021,-500.0,0.00021918,2]
[400715012,1767787842031,-500.0,0.00021918,2]
[400715013,1767787842041,-621.11953586,0.00021918,2]
[400715014,1767787842050,-500.0,0.00021918,2]
[400715015,1767787842060,-500.0,0.00021918,2]
[400715016,1767787842069,-500.0,0.00021918,2]
[400715017,1767787842079,-500.0,0.00021918,2]
[400715018,1767787842089,-500.0,0.00021918,2]
[400715019,1767787842098,-500.0,0.00021918,2]
[400715020,1767787842107,-500.0,0.00021918,2]
[400715021,1767787842117,-500.0,0.00021918,2]
[400715022,1767787842127,-629.46,0.0002192,2]
[400715023,1767787842136,-629.46,0.0002192,2]
[400715024,1767787842146,-629.46,0.0002192,2]
[400715025,1767787842159,-629.46,0.0002192,2]
[400715026,1767787842169,-629.46,0.0002192,2]
[400715027,1767787842179,-2441.3835048,0.00021978,2]
[400715028,1767787842189,-4170.44353141,0.00022,2]
[400715029,1767787842199,-166.66,0.00022077,30]
[400715030,1767787842210,-1064.32,0.000221,7]
[400715031,1767787842220,-1000.0,0.00022969,2]
[400715032,1767787842230,-287.61899177,0.00022975,2]
[400715033,1767787842240,-400.0,0.00023,2]
[400715034,1767787842250,-500.0,0.00023051,2]
[400715035,1767787842260,-159.38705849,0.0002306,2]
[400715036,1767787842270,-10000.0,0.00023268,2]
[400715037,1767787842280,-958.57200881,0.00023468,2]
[400715038,1767787842290,-1208.0,0.00023918,2]
[400715039,1767787842300,-5901.0,0.00024131,2]
[400715040,1767787842310,-298.26089446,0.00024344,2]
[400715041,1767787842320,-155.77,0.00024443,2]
[400715042,1767787842329,-336.97,0.00024658,2]
[400715043,1767787842339,-151.51,0.0002479,2]
[400715044,1767787842350,-151.51,0.0002479,2]
[400715045,1767787842360,-2895.78250173,0.0002479,2]
[400715046,1767787842370,-151.0,0.00024797,7]
[400715047,1767787842380,-11653.10167466,0.000248,2]
[400715048,1767787842528,-459.10630728,0.000248,2]
[400715049,1767787842540,-637.70964098,0.000248,2]
[400715050,1767787842552,-2282.94460336,0.000248,2]
[400715051,1767787842563,-1266.51684298,0.000248,2]
[400715052,1767787842577,-688.30896852,0.000248,2]
[400715053,1767787842588,-2130.2136,0.000248,2]
[400715054,1767787842727,365.44,0.00016292,2]
[400715056,1767787843208,-655.28295906,0.000248,2]
[400715057,1767787843260,-1553.73338953,0.000248,2]
[400715058,1767787843283,-419.77238971,0.000248,2]
[400715069,1767787846794,-1380.925,0.00016795,2]
[400715070,1767787846805,-1016.65390737,0.00016795,2]
[400715071,1767787846817,-30622.94067333,0.00016795,2]
[400715072,1767787846826,-151.0,0.00018044,2]
[400715073,1767787846836,-730.68962392,0.000248,2]
[400715074,1767787846845,-237086.92773427,0.000248,2]
[400715075,1767787846859,-255.73414604,0.000248,2]
[400715076,1767787848169,-1352.0,0.000248,2]
[400715077,1767787848180,-269.99999995,0.000248,2]
[400715078,1767787848192,-262.9,0.000248,2]
[400715079,1767787848249,-630.21210057,0.000248,2]
[400715080,1767787882550,25893.57,0.0003287,120]
[400715081,1767787906097,1266.24,0.00012419,2]
[400715082,1767787906324,1266.24,0.00013073,2]
[400715083,1767787906531,1266.24,0.00013726,2]
[400715084,1767787907192,1266.24,0.0001438,2]
[400715085,1767787907335,1266.24,0.00015033,2]
[400715086,1767787907472,1266.24,0.00015687,2]
[400715193,1767788096744,413.06701154,0.00032876,120]
[400715194,1767788106127,176.0,0.00025414,120]
[400715195,1767788107739,176.0,0.00026684,120]
[400715196,1767788109008,176.0,0.00028019,120]
[400715197,1767788110307,176.0,0.0002942,120]
[400715251,1767788162530,-1266.24,0.00016341,2]
[400715252,1767788162556,-195.0,0.0001642,2]
[400715253,1767788162581,-1200.0,0.00016499,2]
[400715254,1767788162606,-300.0,0.00016499,2]
[400715255,1767788162637,-186.04960159,0.00016499,2]
[400715256,1767788162663,-500.0,0.00016499,2]
[400715257,1767788162691,-151.49916844,0.00016499,2]
[400715258,1767788162722,-253.316828,0.00016499,2]
[400715259,1767788162751,-1000000.0,0.000165,2]
[400715277,1767788360521,5000.0,0.0001,7]
[400715290,1767788669691,2000.0,0.00032877,120]
[400715291,1767788707854,4002.505237,7.945e-05,2]
[400715292,1767788728548,13586.04267755,0.00016,2]
[400715293,1767788823147,1962.37219787,0.00015,2]
[400715294,1767788832437,447.786651,0.0001305,2]
[400715295,1767788886856,-151.78867767,0.00015927,2]
[400715296,1767788888262,-203.86,0.00015927,2]
[400715297,1767788889701,-219.65731484,0.00015927,2]
[400715298,1767788891140,-413.403073,0.00015927,2]
[400715299,1767788895151,-183.94017844,0.00015927,2]
[400715301,1767788900795,-435.80607334,0.00015927,2]
[400715302,1767788905053,-387.81249801,0.00015927,2]
[400715303,1767788907957,-305.02621265,0.00015927,2]
[400715305,1767788914938,10693.46658578,0.00015,2]
[400715307,1767788947435,-465.72577823,0.00015916,2]
[400715308,1767788950701,-154.09944903,0.00015916,2]
[400715309,1767788954474,-313.22299325,0.00015916,2]
[400715310,1767788957300,-215.56679287,0.00015916,2]
[400715311,1767788958844,-300.0,0.00015916,2]
[400715312,1767788960275,-543.53594528,0.00015916,2]
[400715313,1767788963087,-161.34487945,0.00015916,2]
[400715314,1767788964599,-175.88721697,0.00015916,2]
[400715315,1767788966125,-329.17058229,0.00015916,2]
[400715316,1767788969288,-1151.88952264,0.00015916,2]
[400715317,1767788972897,-215.73776141,0.00015916,2]
[400715318,1767788976172,-321.13614272,0.00015916,2]
[400715319,1767788981871,-286.41327817,0.00015916,2]
[400715320,1767788986263,-443.47598748,0.00015916,2]
[400715321,1767788988944,-228.98084791,0.00015916,2]
[400715322,1767788990981,-635.07253898,0.00015916,2]
[400715323,1767788993479,-303.37599486,0.00015916,2]
[400715324,1767788996663,-249.00116379,0.00015916,2]
[400715325,1767789000520,-258.65582907,0.000159,2]
[400715326,1767789008366,-300.0,0.00015346,2]
[400715333,1767789032161,-45.28,0.00015346,2]
[400715335,1767789032171,-290.94313328,0.000159,2]
[400715336,1767789032222,-458.44747329,0.000159,2]
[400715337,1767789032234,-932.57790391,0.000159,2]
[400715338,1767789032243,-1940.62433954,0.000159,2]
[400715339,1767789032252,-1940.62433954,0.000159,2]
[400715340,1767789032266,-1940.62433954,0.000159,2]
[400715341,1767789032275,-1940.62433954,0.00015906,2]
[400715342,1767789032285,-286.0,0.00015915,2]
[400715343,1767789032295,-300.0,0.00015915,2]
[400715344,1767789032304,-300.0,0.00015915,2]
[400715345,1767789032315,-1200.0,0.00015915,2]
[400715346,1767789032326,-1858.95880324,0.00015916,2]
[400715347,1767789032370,-17510.83900003,0.00015916,2]
[400715348,1767789032380,-250.0,0.00015921,2]
[400715349,1767789032389,-1940.62433954,0.00015927,2]
[400715350,1767789032398,-250.0,0.00015962,2]
[400715351,1767789032408,-2828.22717077,0.00015998,2]
[400715352,1767789032418,-300.0,0.00015999,2]
[400715353,1767789032427,-300.0,0.00016,2]
[400715354,1767789032438,-70116.01065003,0.00016,2]
[400715355,1767789032449,-211210.73084052,0.00016,4]
[400715356,1767789032458,-305.75969384,0.00016028,2]
[400715357,1767789032472,-164.43134532,0.00016055,2]
[400715358,1767789032482,-164.43134532,0.00016055,2]
[400715359,1767789032493,-164.59577667,0.00016055,2]
[400715360,1767789032504,-300.0,0.00016086,2]
[400715361,1767789032513,-25863.43467854,0.00016136,2]
[400715362,1767789032524,-32056.01508349,0.0001615,2]
[400715363,1767789032534,-300.0,0.00016175,2]
[400715364,1767789032544,-345.28,0.00016198,2]
[400715365,1767789032554,-27762.83586782,0.000162,5]
[400715366,1767789032563,-500.0,0.0001625,2]
[400715367,1767789032574,-2500.0,0.000163,2]
[400715368,1767789032584,-6674.7957,0.000163,2]
[400715369,1767789032594,-1162.45896948,0.00016338,2]
[400715370,1767789032603,-32056.01508343,0.00016344,2]
[400715371,1767789032613,-448.14092621,0.0001635,2]
[400715372,1767789032622,-25863.43467854,0.00016357,2]
[400715373,1767789032633,-575.02075999,0.0001639,2]
[400715374,1767789032646,-500.0,0.0001639,2]
[400715375,1767789032656,-200.0,0.0001639,2]
[400715376,1767789032669,-500.0,0.0001639,2]
[400715377,1767789032680,-500.0,0.0001639,2]
[400715378,1767789032689,-500.0,0.0001639,2]
[400715379,1767789032699,-500.0,0.0001639,2]
[400715380,1767789032709,-500.0,0.0001639,2]
[400715381,1767789032719,-500.0,0.0001639,2]
[400715382,1767789032728,-200.0,0.0001639,2]
[400715383,1767789032738,-500.0,0.0001639,2]
[400715384,1767789032748,-500.0,0.0001639,2]
[400715385,1767789032757,-500.0,0.0001639,2]
[400715386,1767789032767,-500.0,0.0001639,2]
[400715387,1767789032776,-500.0,0.0001639,2]
[400715388,1767789032787,-500.0,0.0001639,2]
[400715389,1767789032796,-500.0,0.0001639,2]
[400715390,1767789032805,-500.0,0.0001639,2]
[400715391,1767789032815,-500.0,0.0001639,2]
[400715392,1767789032825,-500.0,0.0001639,2]
[400715393,1767789032835,-500.0,0.0001639,2]
[400715394,1767789032844,-151.0,0.0001639,2]
[400715395,1767789032854,-151.0,0.0001639,2]
[400715396,1767789032870,-151.0,0.0001639,2]
[400715397,1767789032879,-151.0,0.0001639,2]
[400715398,1767789032889,-151.0,0.0001639,2]
[400715399,1767789032898,-151.0,0.0001639,2]
[400715400,1767789032909,-151.0,0.0001639,2]
[400715401,1767789032918,-200.0,0.0001639,2]
[400715402,1767789032928,-151.0,0.0001639,2]
[400715403,1767789032938,-151.0,0.0001639,2]
[400715404,1767789032947,-151.0,0.0001639,2]
[400715405,1767789032957,-151.0,0.0001639,2]
[400715406,1767789032966,-151.0,0.00016397,2]
[400715407,1767789032976,-1244.21357412,0.00016399,5]
[400715408,1767789032987,-527.3217796,0.00016399,2]
[400715409,1767789032997,-322.85006914,0.00016399,2]
[400715410,1767789033006,-838.75050777,0.000164,2]
[400715411,1767789033016,-159.76200148,0.000164,2]
[400715412,1767789033025,-244564.81207871,0.000164,2]
[400715413,1767789033050,-574.6,0.000164,2]
[400715414,1767789033064,-238056.50967167,0.000164,2]
[400715415,1767789033076,-1933.50651862,0.000164,2]
[400715416,1767789033088,-13222.88088212,0.000164,2]
[400715417,1767789033099,-650.413,0.000164,2]
[400715418,1767789033110,-2768.24648904,0.000164,2]
[400715419,1767789038244,-604.96108165,0.000164,2]
[400715420,1767789038261,-394395.28283532,0.000164,2]
[400715421,1767789038276,-103228.78744287,0.000164,2]
[400715422,1767789038289,-500.0,0.00016438,2]
[400715423,1767789038302,-500.0,0.00016438,2]
[400715424,1767789038314,-500.0,0.00016438,2]
[400715425,1767789038327,-500.0,0.00016438,2]
[400715426,1767789038340,-500.0,0.00016438,2]
[400715427,1767789038353,-500.0,0.00016438,2]
[400715428,1767789038366,-500.0,0.00016438,2]
[400715429,1767789038380,-500.0,0.00016438,2]
[400715430,1767789038394,-500.0,0.00016438,2]
[400715431,1767789038406,-500.0,0.00016438,2]
[400715432,1767789038419,-500.0,0.00016438,2]
[400715433,1767789038432,-500.0,0.00016438,2]
[400715434,1767789038445,-500.0,0.00016438,2]
[400715436,1767789038457,-500.0,0.00016438,2]
[400715438,1767789038469,-500.0,0.00016438,2]
[400715440,1767789038482,-500.0,0.00016438,2]
[400715442,1767789038495,-500.0,0.00016438,2]
[400715444,1767789038508,-500.0,0.00016438,2]
[400715446,1767789038521,-500.0,0.00016438,2]
[400715448,1767789038534,-500.0,0.00016438,2]
[400715450,1767789038547,-500.0,0.00016438,2]
[400715452,1767789038561,-500.0,0.00016438,2]
[400715453,1767789038573,-500.0,0.00016438,2]
[400715455,1767789038585,-500.0,0.00016438,2]
[400715457,1767789038598,-500.0,0.00016438,2]
[400715459,1767789038611,-168.73317805,0.00016438,2]
[400715461,1767789038625,-502.51179121,0.00016438,2]
[400715463,1767789038641,-502.51179121,0.00016438,2]
[400715466,1767789038654,-502.51179121,0.00016438,2]
[400715467,1767789038666,-502.51179121,0.00016438,2]
[400715470,1767789038679,-502.51179121,0.00016438,2]
[400715472,1767789038692,-502.51179121,0.00016438,2]
[400715474,1767789038707,-502.51179121,0.00016438,2]
[400715476,1767789038719,-502.51179121,0.00016438,2]
[400715478,1767789038732,-502.51179121,0.00016438,2]
[400715480,1767789038746,-502.51179121,0.00016438,2]
[400715482,1767789038759,-502.51179121,0.00016438,2]
[400715484,1767789038773,-502.51179121,0.00016438,2]
[400715486,1767789038786,-502.51179121,0.00016438,2]
[400715488,1767789038799,-502.51179121,0.00016438,2]
[400715490,1767789038812,-502.51179121,0.00016438,2]
[400715493,1767789038825,-502.51179121,0.00016438,2]
[400715495,1767789038838,-502.51179121,0.00016438,2]
[400715497,1767789038851,-502.51179121,0.00016438,2]
[400715499,1767789038864,-502.51179121,0.00016438,2]
[400715501,1767789038879,-502.51179121,0.00016438,2]
[400715503,1767789038892,-502.51179121,0.00016438,2]
[400715505,1767789038905,-502.51179121,0.00016438,2]
[400715507,1767789038918,-502.51179121,0.00016438,2]
[400715509,1767789038931,-502.51179121,0.00016438,2]
[400715511,1767789038945,-502.51179121,0.00016438,2]
[400715512,1767789038958,-502.51179121,0.00016438,2]
[400715514,1767789038970,-502.51179121,0.00016438,2]
[400715516,1767789038983,-502.51179121,0.00016438,2]
[400715517,1767789038996,-502.51179121,0.00016438,2]
[400715518,1767789039009,-502.51179121,0.00016438,2]
[400715519,1767789039023,-502.51179121,0.00016438,2]
[400715520,1767789039036,-502.51179121,0.00016438,2]
[400715521,1767789039049,-502.51179121,0.00016438,2]
[400715522,1767789039061,-502.51179121,0.00016438,2]
[400715523,1767789039074,-502.51179121,0.00016438,2]
[400715524,1767789039088,-502.51179121,0.00016438,2]
[400715525,1767789039103,-502.51179121,0.00016438,2]
[400715526,1767789039118,-502.51179121,0.00016438,2]
[400715527,1767789039128,-502.51179121,0.00016438,2]
[400715528,1767789039138,-502.51179121,0.00016438,2]
[400715529,1767789039149,-502.51179121,0.00016438,2]
[400715530,1767789039159,-502.51179121,0.00016438,2]
[400715531,1767789039169,-502.51179121,0.00016438,2]
[400715532,1767789039179,-502.51179121,0.00016438,2]
[400715533,1767789039189,-502.51179121,0.00016438,2]
[400715534,1767789039199,-502.51179121,0.00016438,2]
[400715535,1767789039209,-502.51179121,0.00016438,2]
[400715536,1767789039219,-502.51179121,0.00016438,2]
[400715537,1767789039230,-500.0,0.00016438,2]
[400715538,1767789039239,-500.0,0.00016438,2]
[400715539,1767789039249,-500.0,0.00016438,2]
[400715540,1767789039260,-500.0,0.00016438,2]
[400715541,1767789039270,-500.0,0.00016438,2]
[400715542,1767789039281,-500.0,0.00016438,2]
[400715543,1767789039291,-500.0,0.00016438,2]
[400715544,1767789039301,-500.0,0.00016438,2]
[400715545,1767789039311,-500.0,0.00016438,2]
[400715546,1767789039321,-500.0,0.00016438,2]
[400715547,1767789039331,-155.04849754,0.00016438,2]
[400715548,1767789039341,-500.0,0.00016438,2]
[400715549,1767789039351,-500.0,0.00016438,2]
[400715550,1767789039768,-500.0,0.00016438,2]
[400715551,1767789039983,-500.0,0.00016438,2]
[400715552,1767789040020,-500.0,0.00016438,2]
[400715553,1767789040041,-500.0,0.00016438,2]
[400715554,1767789040051,-500.0,0.000165,2]
[400715555,1767789040061,-500.0,0.000165,2]
[400715556,1767789040071,-500.0,0.000165,2]
[400715557,1767789040082,-503.41430106,0.000165,2]
[400715558,1767789040092,-500.0,0.000165,2]
[400715559,1767789040102,-500.0,0.000165,2]
[400715560,1767789040111,-612.17704163,0.000165,2]
[400715561,1767789040120,-32056.01508343,0.00016539,2]
[400715562,1767789040129,-25863.43467854,0.00016577,2]
[400715563,1767789040138,-417.23,0.00016624,2]
[400715564,1767789040148,-500.0,0.00016664,2]
[400715565,1767789040157,-159.76200147,0.00016716,2]
[400715566,1767789040166,-32056.01508343,0.00016733,2]
[400715567,1767789040175,-10098.7894,0.00016795,2]
[400715568,1767789040184,-2521.94,0.00016795,2]
[400715569,1767789040194,-9999.99,0.00016795,2]
[400715570,1767789040203,-9999.99,0.00016795,2]
[400715571,1767789040212,-337.15,0.00016795,2]
[400715572,1767789040222,-299.99,0.00016795,4]